Workbook

Sheet Demand
B1: Consumer Demand
B2: Intercept alpha: | C2: =CALCULATIONS!C5 -> 60
B3: Slope beta: | C3: =CALCULATIONS!C6 -> 3
B6: Harvest | C6: Demand
B7: 0 | C7: =$C$2-$C$3*B7 -> 60
B8: 1 | C8: =$C$2-$C$3*B8 -> 57
B9: 2 | C9: 54
B10: 3 | C10: 51
B11: 4 | C11: 48
B12: 5 | C12: 45
B13: 6 | C13: 42
B14: 7 | C14: 39
B15: 8 | C15: 36
B16: 9 | C16: 33
B17: 10 | C17: 30
B18: 11 | C18: 27
B19: 12 | C19: 24
B20: 13 | C20: 21
B21: 14 | C21: 18
B22: 15 | C22: 15
B23: 16 | C23: 12
B24: 17 | C24: 9
B25: 18 | C25: 6
B26: 19 | C26: 3
B27: 20 | C27: 0
B28: 21 | C28: -3
B29: 22 | C29: -6

Sheet Effort
F1: Effort
E2: Catchability c: | F2: =CALCULATIONS!F5 -> 0.1
E3: Effort elasticity a: | F3: =CALCULATIONS!F6 -> 1.5
E4: Biomass elasticity b: | F4: =CALCULATIONS!F7 -> 0.5
A33: Biomass | C33: Harvest
B34: 0 | C34: 1 | D34: 2 | E34: 3 | F34: 4 | G34: 5 | H34: 6 | I34: 7 | J34: 8 | K34: 9 | L34: 10 | M34: 11 | N34: 12 | O34: 13 | P34: 14 | Q34: 15 | R34: 16 | S34: 17 | T34: 18 | U34: 19 | V34: 20
A35: 200 | B35: =(B$34/($F$2*$A35^$F$4))^$F$3 -> 0 | C35: 0.5946035575 | D35: 1.681792831 | E35: 3.089650716 | F35: 4.75682846 | G35: 6.647869871 | H35: 8.738851891 | I35: 11.01221199 | J35: 13.45434264 | K35: 16.05429605 | L35: 18.80301547 | M35: 21.69284589 | N35: 24.71720573 | O35: 27.870357 | P35: 31.1472391 | Q35: 34.54334514 | R35: 38.05462768 | S35: 41.67742564 | T35: 45.40840642 | U35: 49.24451955 | V35: 53.18295897
A36: 190 | B36: 0 | C36: 0.6179236242 | D36: 1.74775194 | E36: 3.210825337 | F36: 4.943388993 | G36: 6.908596143 | H36: 9.081585476 | I36: 11.44410567 | J36: 13.98201552 | K36: 16.68393785 | L36: 19.54046072 | M36: 22.54362892 | N36: 25.68660269 | O36: 28.96341905 | P36: 32.3688189 | Q36: 35.89811859 | R36: 39.54711195 | S36: 43.31199431 | T36: 47.18930237 | U36: 51.17586602 | V36: 55.26876914
A37: 180 | B37: 0 | C37: 0.6434956585 | D37: 1.820080575 | E37: 3.343701525 | F37: 5.147965268 | G37: 7.194500178 | H37: 9.45741609 | I37: 11.91770637 | J37: 14.5606446 | K37: 17.37438278 | L37: 20.34911945 | M37: 23.47657019 | N37: 26.7496122 | O37: 30.1620357 | P37: 33.70836398 | Q37: 37.38371953 | R37: 41.18372214 | S37: 45.10440968 | T37: 49.14217553 | U37: 53.29371837 | V37: 57.55600142
A38: 170 | B38: 0 | C38: 0.6716813797 | D38: 1.899801833 | E38: 3.490158828 | F38: 5.373451037 | G38: 7.509626121 | H38: 9.871659899 | I38: 12.43971324 | J38: 15.19841467 | K38: 18.13539725 | L38: 21.24043022 | M38: 24.50486627 | N38: 27.92127063 | O38: 31.48316152 | P38: 35.18482234 | Q38: 39.02116196 | R38: 42.9876083 | S38: 47.08002568 | T38: 51.2946495 | U38: 55.62803387 | V38: 60.07700897
A39: 160 | B39: 0 | C39: 0.7029266565 | D39: 1.988176822 | E39: 3.652514049 | F39: 5.623413252 | G39: 7.858958936 | H39: 10.33086981 | I39: 13.01838386 | J39: 15.90541458 | K39: 18.97901973 | L39: 22.22849263 | M39: 25.64478372 | N39: 29.22011239 | O39: 32.94769534 | P39: 36.82155003 | Q39: 40.83634851 | R39: 44.98730602 | S39: 49.27009448 | T39: 53.68077419 | U39: 58.21573895 | V39: 62.87167148
A40: 150 | B40: 0 | C40: 0.7377879465 | D40: 2.08677944 | E40: 3.833658625 | F40: 5.902303572 | G40: 8.248720006 | H40: 10.84322404 | I40: 13.66402399 | J40: 16.69423552 | K40: 19.92027455 | L40: 23.33090341 | M40: 26.91662373 | N40: 30.669269 | O40: 34.58171953 | P40: 38.64769608 | Q40: 42.86160645 | R40: 47.21842857 | S40: 51.71361975 | T40: 56.34304488 | U40: 61.10291891 | V40: 65.98976005
A41: 140 | B41: 0 | C41: 0.7769695042 | D41: 2.197601621 | E41: 4.037251972 | F41: 6.215756034 | G41: 8.68678314 | H41: 11.41907299 | I41: 14.38967659 | J41: 17.58081297 | K41: 20.97817661 | L41: 24.56993306 | M41: 28.34607951 | N41: 32.29801577 | O41: 36.41824403 | P41: 40.70015159 | Q41: 45.13784926 | R41: 49.72604827 | S41: 54.45996468 | T41: 59.33524376 | U41: 64.34789947 | V41: 69.49426512
A42: 130 | B42: 0 | C42: 0.8213769018 | D42: 2.323204709 | E42: 4.267999578 | F42: 6.571015215 | G42: 9.183272938 | H42: 12.07172578 | I42: 15.2121131 | J42: 18.58563767 | K42: 22.17717635 | L42: 25.97421827 | M42: 29.96618894 | N42: 34.14399663 | O42: 38.49971497 | P42: 43.02635333 | Q42: 47.71768593 | R42: 52.56812172 | S42: 57.57260332 | T42: 62.72652714 | U42: 68.02567928 | V42: 73.46618351
A43: 120 | B43: 0 | C43: 0.8721959495 | D43: 2.466942682 | E43: 4.532063096 | F43: 6.977567596 | G43: 9.751447164 | H43: 12.81861019 | I43: 16.15329504 | J43: 19.73554145 | K43: 23.54929064 | L43: 27.58125766 | M43: 31.82021379 | N43: 36.25650477 | O43: 40.88171384 | P43: 45.68841784 | Q43: 50.67000581 | R43: 55.82054077 | S43: 61.13465244 | T43: 66.6074524 | U43: 72.23446605 | V43: 78.01157731
A44: 110 | B44: 0 | C44: 0.9310124446 | D44: 2.633300852 | E44: 4.83768257 | F44: 7.448099557 | G44: 10.40903557 | H44: 13.6830326 | I44: 17.24259177 | J44: 21.06640681 | K44: 25.137336 | L44: 29.44119855 | M44: 33.96600849 | N44: 38.70146056 | O44: 43.63857039 | P44: 48.76941427 | Q44: 54.0869354 | R44: 59.58479646 | S44: 65.25726502 | T44: 71.099123 | U44: 77.10559406 | V44: 83.27228456
A45: 100 | B45: 0 | C45: 1 | D45: 2.828427125 | E45: 5.196152423 | F45: 8 | G45: 11.18033989 | H45: 14.69693846 | I45: 18.52025918 | J45: 22.627417 | K45: 27 | L45: 31.6227766 | M45: 36.48287269 | N45: 41.56921938 | O45: 46.87216658 | P45: 52.38320341 | Q45: 58.09475019 | R45: 64 | S45: 70.09279564 | T45: 76.36753237 | U45: 82.81907993 | V45: 89.4427191
A46: 90 | B46: 0 | C46: 1.082226385 | D46: 3.060998462 | E46: 5.623413252 | F46: 8.657811079 | G46: 12.09965882 | H46: 15.90541458 | I46: 20.04311314 | J46: 24.4879877 | K46: 29.22011239 | L46: 34.2230032 | M46: 39.48272743 | N46: 44.98730602 | O46: 50.72629539 | P46: 56.69048486 | Q46: 62.87167148 | R46: 69.26248863 | S46: 75.85627283 | T46: 82.64695848 | U46: 89.62899347 | V46: 96.79727055
A47: 80 | B47: 0 | C47: 1.182177011 | D47: 3.343701525 | E47: =(E$34/($F$2*$A47^$F$4))^$F$3 -> 6.142771941 | F47: 9.45741609 | G47: 13.21714079 | H47: 17.37438278 | I47: 21.89422464 | J47: 26.7496122 | K47: 31.9187793 | L47: 37.38371953 | M47: 43.1292134 | N47: 49.14217553 | O47: 55.4111978 | P47: 61.92621885 | Q47: 68.67827815 | R47: 75.65932872 | S47: 82.86209165 | T47: 90.27994117 | U47: 97.90681238 | V47: 105.7371263
A48: 70 | B48: =(B$34/($F$2*$A48^$F$4))^$F$3 -> 0 | C48: 1.306701742 | D48: 3.69591065 | E48: 6.789821421 | F48: 10.45361393 | G48: 14.6093696 | H48: 19.20451508 | I48: 24.20045492 | J48: 29.5672852 | K48: 35.28094703 | L48: 41.32153726 | M48: 47.67223329 | N48: 54.31857137 | O48: 61.24794171 | P48: 68.44922314 | Q48: 75.91251126 | R48: 83.62891147 | S48: 91.59037814 | T48: 99.78958756 | U48: 108.219836 | V48: 116.8749568
A49: 60 | B49: 0 | C49: 1.466852895 | D49: 4.148886515 | E49: 7.621991222 | F49: 11.73482316 | G49: 16.39991393 | H49: 21.55824672 | I49: 27.16649578 | J49: 33.19109212 | K49: 39.60502816 | L49: 46.3859614 | M49: 53.51500742 | N49: 60.97592978 | O49: 68.75457323 | P49: 76.83845356 | Q49: 85.21645249 | R49: 93.87858526 | S49: 102.8158202 | T49: 112.0199359 | U49: 121.4834071 | V49: 131.1993114
A50: 50 | B50: 0 | C50: 1.681792831 | D50: 4.75682846 | E50: 8.738851891 | F50: 13.45434264 | G50: 18.80301547 | H50: 24.71720573 | I50: 31.1472391 | J50: 38.05462768 | K50: 45.40840642 | L50: 53.18295897 | M50: 61.35663373 | N50: 69.91081513 | O50: 78.82927371 | P50: 88.09769594 | Q50: 97.70333436 | R50: 107.6347412 | S50: 117.8815612 | T50: 128.4343684 | U50: 139.2845349 | V50: 150.4241237
A51: 40 | B51: 0 | C51: 1.988176822 | D51: 5.623413252 | E51: 10.33086981 | F51: 15.90541458 | G51: 22.22849263 | H51: 29.22011239 | I51: 36.82155003 | J51: 44.98730602 | K51: 53.68077419 | L51: 62.87167148 | M51: 72.53440189 | N51: 82.64695848 | O51: 93.19015519 | P51: 104.1470709 | Q51: 115.5026358 | R51: 127.2433166 | S51: 139.3568717 | T51: 151.8321578 | U51: 164.6589751 | V51: 177.827941
A52: 30 | B52: 0 | C52: 2.466942682 | D52: 6.977567596 | E52: 12.81861019 | F52: 19.73554145 | G52: 27.58125766 | H52: 36.25650477 | I52: 45.68841784 | J52: 55.82054077 | K52: 66.6074524 | L52: 78.01157731 | M52: 90.0011558 | N52: 102.5488815 | O52: 115.6309483 | P52: 129.2263603 | Q52: 143.3164188 | R52: 157.8843316 | S52: 172.9149092 | T52: 188.3943251 | U52: 204.3099231 | V52: 220.6500613
A53: 20 | B53: 0 | C53: 3.343701525 | D53: 9.45741609 | E53: 17.37438278 | F53: 26.7496122 | G53: 37.38371953 | H53: 49.14217553 | I53: 61.92621885 | J53: 75.65932872 | K53: 90.27994117 | L53: 105.7371263 | M53: 121.9878371 | N53: 138.9950622 | O53: 156.7265349 | P53: 175.1537971 | Q53: 194.2515048 | R53: 213.9968976 | S53: 234.3693876 | T53: 255.3502344 | U53: 276.9222838 | V53: 299.0697562
A54: 10 | B54: 0 | C54: 5.623413252 | D54: 15.90541458 | E54: 29.22011239 | F54: 44.98730602 | G54: 62.87167148 | H54: 82.64695848 | I54: 104.1470709 | J54: 127.2433166 | K54: 151.8321578 | L54: 177.827941 | M54: 205.1582698 | N54: 233.7608991 | O54: 263.5815627 | P54: 294.5724003 | Q54: 326.6907881 | R54: 359.8984481 | S54: 394.1607558 | T54: 429.4461935 | U54: 465.7259116 | V54: 502.9733719
A55: 0.001 | B55: 0 | C55: 5623.413252 | D55: 15905.41458 | E55: 29220.11239 | F55: 44987.30602 | G55: 62871.67148 | H55: 82646.95848 | I55: 104147.0709 | J55: 127243.3166 | K55: 151832.1578 | L55: 177827.941 | M55: 205158.2698 | N55: 233760.8991 | O55: 263581.5627 | P55: 294572.4003 | Q55: 326690.7881 | R55: 359898.4481 | S55: 394160.7558 | T55: 429446.1935 | U55: 465725.9116 | V55: 502973.3719
A57: Harvest | C57: Biomass
B58: 20 | C58: 40 | D58: 60 | E58: 80 | F58: 100 | G58: 120 | H58: 140 | I58: 160
A59: 0 | B59: =($A59/($F$2*B$58^$F$4))^$F$3 -> 0 | C59: =($A59/($F$2*C$58^$F$4))^$F$3 -> 0 | D59: 0 | E59: 0 | F59: 0 | G59: 0 | H59: 0 | I59: 0
A60: 1 | B60: =($A60/($F$2*B$58^$F$4))^$F$3 -> 3.343701525 | C60: 1.988176822 | D60: 1.466852895 | E60: 1.182177011 | F60: 1 | G60: 0.8721959495 | H60: 0.7769695042 | I60: 0.7029266565
A61: 2 | B61: 9.45741609 | C61: 5.623413252 | D61: 4.148886515 | E61: 3.343701525 | F61: 2.828427125 | G61: 2.466942682 | H61: 2.197601621 | I61: 1.988176822
A62: 3 | B62: 17.37438278 | C62: 10.33086981 | D62: 7.621991222 | E62: 6.142771941 | F62: 5.196152423 | G62: 4.532063096 | H62: 4.037251972 | I62: 3.652514049
A63: 4 | B63: 26.7496122 | C63: 15.90541458 | D63: 11.73482316 | E63: 9.45741609 | F63: 8 | G63: 6.977567596 | H63: 6.215756034 | I63: 5.623413252
A64: 5 | B64: 37.38371953 | C64: 22.22849263 | D64: 16.39991393 | E64: 13.21714079 | F64: 11.18033989 | G64: 9.751447164 | H64: 8.68678314 | I64: 7.858958936
A65: 6 | B65: 49.14217553 | C65: 29.22011239 | D65: 21.55824672 | E65: 17.37438278 | F65: 14.69693846 | G65: 12.81861019 | H65: 11.41907299 | I65: 10.33086981
A66: 7 | B66: 61.92621885 | C66: 36.82155003 | D66: 27.16649578 | E66: 21.89422464 | F66: 18.52025918 | G66: 16.15329504 | H66: 14.38967659 | I66: 13.01838386
A67: 8 | B67: 75.65932872 | C67: 44.98730602 | D67: 33.19109212 | E67: 26.7496122 | F67: 22.627417 | G67: 19.73554145 | H67: 17.58081297 | I67: 15.90541458
A68: 9 | B68: 90.27994117 | C68: 53.68077419 | D68: 39.60502816 | E68: 31.9187793 | F68: 27 | G68: 23.54929064 | H68: 20.97817661 | I68: 18.97901973
A69: 10 | B69: 105.7371263 | C69: 62.87167148 | D69: 46.3859614 | E69: 37.38371953 | F69: 31.6227766 | G69: 27.58125766 | H69: 24.56993306 | I69: 22.22849263
A70: 11 | B70: 121.9878371 | C70: 72.53440189 | D70: 53.51500742 | E70: 43.1292134 | F70: 36.48287269 | G70: 31.82021379 | H70: 28.34607951 | I70: 25.64478372
A71: 12 | B71: 138.9950622 | C71: 82.64695848 | D71: 60.97592978 | E71: 49.14217553 | F71: 41.56921938 | G71: 36.25650477 | H71: 32.29801577 | I71: 29.22011239
A72: 13 | B72: 156.7265349 | C72: 93.19015519 | D72: 68.75457323 | E72: 55.4111978 | F72: 46.87216658 | G72: 40.88171384 | H72: 36.41824403 | I72: 32.94769534
A73: 14 | B73: 175.1537971 | C73: 104.1470709 | D73: 76.83845356 | E73: 61.92621885 | F73: 52.38320341 | G73: 45.68841784 | H73: 40.70015159 | I73: 36.82155003
A74: 15 | B74: 194.2515048 | C74: 115.5026358 | D74: 85.21645249 | E74: 68.67827815 | F74: 58.09475019 | G74: 50.67000581 | H74: 45.13784926 | I74: 40.83634851
A75: 16 | B75: 213.9968976 | C75: 127.2433166 | D75: 93.87858526 | E75: 75.65932872 | F75: 64 | G75: 55.82054077 | H75: 49.72604827 | I75: 44.98730602
A76: 17 | B76: 234.3693876 | C76: 139.3568717 | D76: 102.8158202 | E76: 82.86209165 | F76: 70.09279564 | G76: 61.13465244 | H76: 54.45996468 | I76: 49.27009448
A77: 18 | B77: 255.3502344 | C77: 151.8321578 | D77: 112.0199359 | E77: 90.27994117 | F77: 76.36753237 | G77: 66.6074524 | H77: 59.33524376 | I77: 53.68077419
A78: 19 | B78: 276.9222838 | C78: 164.6589751 | D78: 121.4834071 | E78: 97.90681238 | F78: 82.81907993 | G78: 72.23446605 | H78: 64.34789947 | I78: 58.21573895
A79: 20 | B79: 299.0697562 | C79: 177.827941 | D79: 131.1993114 | E79: 105.7371263 | F79: 89.4427191 | G79: 78.01157731 | H79: 69.49426512 | I79: 62.87167148

Sheet Growth
I1: Growth
H2: Growth rate g: | I2: =CALCULATIONS!I5 -> 0.25
H3: Carrying capacity K: | I3: =CALCULATIONS!I6 -> 200
C31: tau(0.999): | D31: t | E31: Growth | L31: Biomass | M31: Growth
C32: =-LN((1/0.999-1))/I2 -> 27.62701911 | D32: 0 | E32: =$I$3/(1+EXP(-$I$2*(D32-$C$32))) -> 0.2 | L32: 0 | M32: =$I$2*(1-L32/$I$3)*L32 -> 0
D33: =D32+$C$32/11 -> 2.511547192 | E33: =$I$3/(1+EXP(-$I$2*(D33-$C$32))) -> 0.3744023042 | L33: =$I$3/20 -> 10 | M33: =$I$2*(1-L33/$I$3)*L33 -> 2.375
D34: =D33+$C$32/11 -> 5.023094384 | E34: 0.7003523432 | L34: =L33+$I$3/20 -> 20 | M34: 4.5
D35: 7.534641577 | E35: 1.308210851 | L35: 30 | M35: 6.375
D36: 10.04618877 | E36: 2.437197792 | L36: 40 | M36: 8
D37: 12.55773596 | E37: 4.518344885 | L37: 50 | M37: 9.375
D38: 15.06928315 | E38: 8.30192661 | L38: 60 | M38: 10.5
D39: 17.58083035 | E39: 15.01052663 | L39: 70 | M39: 11.375
D40: 20.09237754 | E40: 26.39379972 | L40: 80 | M40: 12
D41: 22.60392473 | E41: 44.34046041 | L41: 90 | M41: 12.375
D42: 25.11547192 | E42: 69.59797084 | L42: 100 | M42: 12.5
D43: 27.62701911 | E43: 100 | L43: 110 | M43: 12.375
D44: 30.13856631 | E44: 130.4020292 | L44: 120 | M44: 12
D45: 32.6501135 | E45: 155.6595396 | L45: 130 | M45: 11.375
D46: 35.16166069 | E46: 173.6062003 | L46: 140 | M46: 10.5
D47: 37.67320788 | E47: 184.9894734 | L47: 150 | M47: 9.375
D48: 40.18475508 | E48: 191.6980734 | L48: 160 | M48: 8
D49: 42.69630227 | E49: 195.4816551 | L49: 170 | M49: 6.375
D50: 45.20784946 | E50: 197.5628022 | L50: 180 | M50: 4.5
D51: 47.71939665 | E51: 198.6917891 | L51: 190 | M51: 2.375
D52: 50.23094384 | E52: 199.2996477 | L52: 200 | M52: 0
D53: 52.74249104 | E53: 199.6255977 | L53: 210 | M53: -2.625
D54: 55.25403823 | E54: 199.8 | L54: 220 | M54: -5.5

Sheet CALCULATIONS
B2: Capture Fishery
B4: Consumer Demand | F4: Effort | I4: Growth | L4: Other Prices | O4: Biomass
B5: Intercept alpha: | C5: 60 | E5: Catchability c: | F5: 0.1 | H5: Growth rate g: | I5: 0.25 | K5: Discount rate r: | L5: 0.05 | N5: Initial Biomass B0: | O5: 60
B6: Slope beta: | C6: 3 | E6: Effort elasticity a: | F6: 1.5 | H6: Carrying Capacity K: | I6: 200 | K6: Price of effort Pe: | L6: 3
E7: Biomass elasticity b: | F7: 0.5
J9: Consumer Surplus: | K9: =SUM(X16:X66) -> 3502.380639
F10: Total Willing to Pay: | G10: =SUM(P16:P66) -> 9596.243169 | J10: Total Rent: | K10: =SUM(Y16:Y66) -> 2766.446075 | N10: Dynamic Welfare | O10: =SUM(W16:W66) -> 7965.194358
F11: Total Effort Costs: | G11: =SUM(Q16:Q66) -> 2218.277637 | J11: Producer Surplus: | K11: =SUM(Z16:Z66) -> 1109.138818 | N11: Total User Costs|Benefits | O11: =SUM(V16:V66) -> 587.2288252
F12: Net Present Value: | G12: =SUM(R16:R66) -> 7377.965532 | J12: Net Present Value: | K12: =G12 -> 7377.965532 | N12: Net Present Value: | O12: =G12 -> 7377.965532
E14: Undiscounted | P14: Discounted
A15: Time | B15: Harvest | C15: Growth | D15: Biomass | E15: TWP | F15: TEC | G15: TWP-TEC | H15: Price | I15: MEC | J15: MUC | K15: TUC|B | L15: Dyn Welf | M15: Con Sur | N15: Tot Rent | O15: Pro Sur | P15: TWP | Q15: TEC | R15: TWP-TEC | S15: Price | T15: MEC | U15: MUC | V15: TUC|B | W15: Dyn Welf | X15: Con Sur | Y15: Tot Rent | Z15: Pro Sur
A16: 0 | B16: 6.55209271 | C16: =IF(D16<0,-1,$I$5*(1-D16/$I$6)*D16) -> 10.5 | D16: =O5 -> 60 | E16: =$C$5*B16-0.5*$C$6*B16^2 -> 328.7306843 | F16: =IF(OR(B16<=0,D16<=0),0,$L$6*(B16/($F$5*D16^$F$7))^$F$6) -> 73.80365463 | G16: =E16-F16 -> 254.9270297 | H16: =$C$5-$C$6*B16 -> 40.34372187 | I16: =IF($F$6=1,$F$6*$L$6/($F$5*D16^$F$7)^$F$6,IF(B16<=0,0,$F$6*$L$6*B16^($F$6-1)/($F$5*D16^$F$7)^$F$6)) -> 16.896202 | J16: =(1/(1+L5))*(J17+F6*F7/D16*L6*(B16/(F5*D16^F7))^F6+J17*I5*(1-2*D16/I6)) -> 25.44268337 | K16: =J17*(C16-B16) -> 92.56863463 | L16: =G16+K16 -> 347.4956643 | M16: =E16-H16*B16 -> 64.39487833 | N16: =J17*B16 -> 153.630324 | O16: =I16*B16-F16 -> 36.90182731 | P16: =(1/(1+$L$5))^$A16*E16 -> 328.7306843 | Q16: =(1/(1+$L$5))^$A16*F16 -> 73.80365463 | R16: =(1/(1+$L$5))^$A16*G16 -> 254.9270297 | S16: =(1/(1+$L$5))^$A16*H16 -> 40.34372187 | T16: 16.896202 | U16: =(1/(1+$L$5))^(A16-1)*J16 -> 26.71481754 | V16: =(1/(1+$L$5))^$A16*K16 -> 92.56863463 | W16: 347.4956643 | X16: 64.39487833 | Y16: 153.630324 | Z16: 36.90182731
A17: 1 | B17: 7.154251948 | C17: =IF(D17<0,-1,$I$5*(1-D17/$I$6)*D17) -> 10.87530826 | D17: =D16+C16-B16 -> 63.94790729 | E17: =$C$5*B17-0.5*$C$6*B17^2 -> 352.4801355 | F17: =IF(OR(B17<=0,D17<=0),0,$L$6*(B17/($F$5*D17^$F$7))^$F$6) -> 80.27824098 | G17: =E17-F17 -> 272.2018945 | H17: =$C$5-$C$6*B17 -> 38.53724416 | I17: =IF($F$6=1,$F$6*$L$6/($F$5*D17^$F$7)^$F$6,IF(B17<=0,0,$F$6*$L$6*B17^($F$6-1)/($F$5*D17^$F$7)^$F$6)) -> 16.83157965 | J17: =H16-I16 -> 23.44751987 | K17: =J18*(C17-B17) -> 80.76800002 | L17: =G17+K17 -> 352.9698945 | M17: =E17-H17*B17 -> 76.7749814 | N17: =J18*B17 -> 155.2877926 | O17: =I17*B17-F17 -> 40.13912049 | P17: 335.6953671 | Q17: 76.4554676 | R17: 259.2398995 | S17: 36.70213729 | T17: 16.03007585 | U17: =(1/(1+$L$5))^(A17-1)*J17 -> 23.44751987 | V17: 76.92190478 | W17: 336.1618043 | X17: 73.1190299 | Y17: 147.8931358 | Z17: 38.2277338
A18: 2 | B18: 7.689746063 | C18: 11.19338011 | D18: =D17+C17-B17 -> 67.66896361 | E18: 372.686472 | F18: 85.7426908 | G18: 286.9437812 | H18: 36.93076181 | I18: 16.72539446 | J18: 21.70566451 | K18: =J19*(C18-B18) -> 70.79221293 | L18: =G18+K18 -> 357.7359941 | M18: 88.69829176 | N18: 155.374144 | O18: 42.8713454 | P18: 338.0376163 | Q18: 77.77114812 | R18: 260.2664682 | S18: 33.49728963 | T18: 15.17042581 | U18: 20.67206144 | V18: 64.21062398 | W18: 324.4770922 | X18: 80.45196532 | Y18: 140.9289288 | Z18: 38.88557406
A19: 3 | B19: 8.166575528 | C19: 11.46122609 | D19: 71.17259765 | E19: 389.9550979 | F19: 90.35384039 | G19: 299.6012575 | H19: 35.50027341 | I19: 16.59578854 | J19: 20.20536735 | K19: 62.28367175 | L19: 361.8849293 | M19: 100.0394338 | N19: 154.3849035 | O19: 45.17692019 | P19: 336.8578753 | Q19: 78.0510445 | R19: 258.8068308 | S19: 30.66647093 | T19: 14.33606612 | U19: 18.32686381 | V19: 53.80297743 | W19: 312.6098082 | X19: 86.41782424 | Y19: 133.3634843 | Z19: 39.02552225
A20: 4 | B20: 8.591737515 | C20: 11.68509823 | D20: 74.46724821 | E20: 404.7773206 | F20: 94.24726936 | G20: 310.5300512 | H20: 34.22478746 | I20: 16.45428574 | J20: 18.90448487 | K20: 54.97057197 | L20: 365.5006232 | M20: 110.7269303 | N20: 152.6794863 | O20: 47.12363468 | P20: 333.0113034 | Q20: 77.53746174 | R20: 255.4738417 | S20: 28.15681734 | T20: 13.5369816 | U20: 16.33040481 | V20: 45.2244256 | W20: 300.6982672 | X20: 91.09531957 | Y20: 125.6097912 | Z20: 38.76873087
A21: 5 | B21: 8.971198074 | C21: 11.87059216 | D21: 77.56060893 | E21: 417.5482921 | F21: 97.53624131 | G21: 320.0120508 | H21: 33.08640578 | I21: 16.30823004 | J21: 17.77050172 | K21: 48.64654351 | L21: 368.6585943 | M21: 120.7235923 | N21: 150.5203378 | O21: 48.76812065 | P21: 327.1600126 | Q21: 76.42219724 | R21: 250.7378154 | S21: 25.92406468 | T21: 12.77792497 | U21: 14.61983574 | V21: 38.11583975 | W21: 288.8536551 | X21: 94.5900935 | Y21: 117.9366233 | Z21: 38.21109862
A22: 6 | B22: 9.310190725 | C22: 12.02273565 | D22: 80.46000302 | E22: 428.5919665 | F22: 100.3168965 | G22: 328.27507 | H22: 32.06942783 | I22: 16.16243418 | J22: 16.77817573 | K22: 43.14843484 | L22: 371.4235048 | M22: 130.019477 | N22: 148.0971447 | O22: 50.15844827 | P22: 319.8219243 | Q22: 74.85801274 | R22: 244.9639115 | S22: 23.9307008 | T22: 12.06065723 | U22: 13.14613971 | V22: 32.19802642 | W22: 277.161938 | X22: 97.0225356 | Y22: 110.5123696 | Z22: 37.42900637
A23: 7 | B23: 9.613235121 | C23: 12.14604607 | D23: 83.17254794 | E23: 438.172673 | F23: 102.669299 | G23: 335.503374 | H23: 31.16029464 | I23: 16.01999187 | J23: 15.90699364 | K23: 38.34752463 | L23: 373.8508986 | M23: 138.6214342 | N23: 145.5472903 | O23: 51.33464951 | P23: 311.4011381 | Q23: 72.96515399 | R23: 238.4359841 | S23: 22.14503964 | T23: 11.38510913 | U23: 11.87004357 | V23: 27.25286981 | W23: 265.6888539 | X23: 98.51566527 | Y23: 103.4377418 | Z23: 36.48257699
A24: 8 | B24: 9.884288928 | C24: 12.24457904 | D24: 85.70535889 | E24: 446.5085843 | F24: 104.6606479 | G24: 341.8479363 | H24: 30.34713322 | I24: 15.88287969 | J24: 15.14030276 | K24: 34.13983463 | L24: 375.987771 | M24: 146.5487514 | N24: 142.9688609 | O24: 52.33032396 | P24: 302.2145853 | Q24: 70.83844617 | R24: 231.3761391 | S24: 20.54013428 | T24: 10.75015816 | U24: 10.75993051 | V24: 23.10718389 | W24: 254.483323 | X24: 99.18996342 | Y24: 96.76695264 | Z24: 35.41922309
A25: 9 | B25: 10.1268646 | C25: 12.32196408 | D25: 88.06564901 | E25: 453.7817961 | F25: 106.3478844 | G25: 347.4339117 | H25: 29.61940619 | I25: 15.75234121 | J25: 14.46425352 | K25: 30.43958712 | L25: 377.8734989 | M25: 153.83008 | N25: 140.4298895 | O25: 53.17394221 | P25: 292.5117918 | Q25: 68.55279452 | R25: 223.9589973 | S25: 19.09293332 | T25: 10.1540996 | U25: 9.789976126 | V25: 19.62162927 | W25: 243.5806266 | X25: 99.16024117 | Y25: 90.52235887 | Z25: 34.27639726
A26: 10 | B26: 10.34408323 | C26: 12.38143372 | D26: 90.26074849 | E26: 460.1449069 | F26: 107.7792274 | G26: 352.3656795 | H26: 28.96775032 | I26: 15.62911256 | J26: 13.86706498 | K26: 27.17548027 | L26: 379.5411598 | M26: 160.5000867 | N26: 137.9759791 | O26: 53.88961369 | P26: 282.4890569 | Q26: 66.16709615 | R26: 216.3219608 | S26: 17.78368585 | T26: 9.594919341 | U26: 8.938833727 | V26: 16.68338751 | W26: 233.0053483 | X26: 98.53313043 | Y26: 84.70528225 | Z26: 33.08354807
A27: 11 | B27: 10.53870271 | C27: 12.4258509 | D27: 92.29809899 | E27: 465.7257803 | F27: 108.9952113 | G27: 356.730569 | H27: 28.38389188 | I27: 15.51356192 | J27: 13.33863776 | K27: 24.28821996 | L27: 381.0187889 | M27: 166.5963821 | N27: 135.6365812 | O27: 54.49760565 | P27: 272.3002181 | Q27: 63.72724265 | R27: 208.5729755 | S27: 16.59547373 | T27: 9.070458352 | U27: 8.188766504 | V27: 14.20081918 | W27: 222.7737946 | X27: 97.40545425 | Y27: 79.30389989 | Z27: 31.86362133
A28: 12 | B28: 10.713149 | C28: 12.45773581 | D28: 94.18524718 | E28: 470.6315977 | F28: 110.0296701 | G28: 360.6019276 | H28: 27.860553 | I28: 15.40578827 | J28: 12.87032997 | K28: 21.72841832 | L28: 382.3303459 | M28: 172.1573422 | N28: 133.4297503 | O28: 55.01483507 | P28: 262.0652838 | Q28: 61.26863744 | R28: 200.7966463 | S28: 15.5137984 | T28: 8.578519367 | U28: 7.525015375 | V28: 12.09919636 | W28: 212.8958427 | X28: 95.86364995 | Y28: 74.29867767 | Z28: 30.63431872
A29: 13 | B29: 10.8695591 | C29: 12.47929219 | D29: 95.92983399 | E29: 474.9525735 | F29: 110.9108101 | G29: 364.0417634 | H29: 27.3913227 | I29: 15.30570041 | J29: 12.45476473 | K29: 19.45462607 | L29: 383.4963894 | M29: 177.2209725 | N29: 131.3653858 | O29: 55.45540504 | P29: 251.8774902 | Q29: 58.81837061 | R29: 193.0591196 | S29: 14.52620325 | T29: 8.116939712 | U29: 6.935279037 | V29: 10.31720357 | W29: 203.3763232 | X29: 93.98406552 | Y29: 69.66586882 | Z29: 29.4091853
A30: 14 | B30: 11.00982713 | C30: 12.49243284 | D30: 97.53956708 | E30: 478.7651876 | F30: 111.6622531 | G30: 367.1029345 | H30: 26.97051862 | I30: 15.21307989 | J30: 12.08562229 | K30: 17.43164578 | L30: 384.5345803 | M30: 181.8244401 | N30: 129.4473678 | O30: 55.83112656 | P30: 241.8089533 | Q30: 56.39702561 | R30: 185.4119277 | S30: 13.62194463 | T30: 7.683639119 | U30: 6.409263538 | V30: 8.804165652 | W30: 194.2160933 | X30: 91.83369776 | Y30: 65.37971709 | Z30: 28.19851281
A31: 15 | B31: 11.1356443 | C31: 12.49880482 | D31: 99.02217279 | E31: 482.1347971 | F31: 112.3039266 | G31: 369.8308705 | H31: 26.5930671 | I31: 15.12762848 | J31: 11.75743873 | K31: 15.62923322 | L31: 385.4601037 | M31: 186.003861 | N31: 127.6750462 | O31: 56.1519633 | P31: 231.915081 | Q31: 54.02010887 | R31: 177.8949721 | S31: 12.79171996 | T31: 7.276647953 | U31: 5.938305509 | V31: 7.517928408 | W31: 185.4129005 | X31: 89.47103746 | Y31: 61.41388021 | Z31: 27.01005444
A32: 16 | B32: 11.24852981 | C32: 12.4998144 | D32: 100.3853333 | E32: 485.1176544 | F32: 112.8527643 | G32: 372.2648901 | H32: 26.25441056 | I32: 15.04900189 | J32: 11.46543861 | K32: 14.02115511 | L32: 386.2860452 | M32: 189.7941345 | N32: 126.0443735 | O32: 56.42638214 | P32: 222.237987 | Q32: 51.69915161 | R32: 170.5388354 | S32: =(1/(1+$L$5))^$A32*H32 -> 12.02744798 | T32: 6.89412116 | U32: 5.515072011 | V32: =(1/(1+$L$5))^$A32*K32 -> 6.423252708 | W32: 176.9620881 | X32: 86.94687982 | Y32: 57.74237977 | Z32: 25.8495758
A33: 17 | B33: 11.34983251 | C33: 12.49665185 | D33: 101.6366179 | E33: 487.7619036 | F33: 113.3229262 | G33: 374.4389774 | H33: 25.95050247 | I33: 14.97681918 | J33: 11.20540867 | K33: 12.58483224 | L33: 387.0238097 | M33: 193.228047 | N33: 124.5494673 | O33: 56.66146309 | P33: 212.8089029 | Q33: 49.44241732 | R33: 163.3664856 | S33: 11.32211827 | T33: 6.5343366 | U33: 5.133326819 | V33: 5.490720621 | W33: 168.8572062 | X33: 84.30475687 | Y33: 54.34052003 | Z33: 24.72120866
A34: 18 | B34: 11.44075304 | C34: 12.4903156 | D34: 102.7834372 | E34: 490.1089373 | F34: 113.7262761 | G34: 376.3826612 | H34: 25.67774087 | I34: 14.91068057 | J34: 10.97368329 | K34: 11.3007033 | L34: 387.6833645 | M34: 196.3362453 | N34: 123.1832779 | O34: 56.86313805 | P34: 203.6503866 | Q34: 47.25561672 | R34: 156.3947699 | S34: 10.6696317 | T34: 6.195695756 | U34: 4.787781668 | V34: 4.695675635 | W34: 161.0904455 | X34: 81.58176522 | Y34: 51.18519629 | Z34: 23.62780836
A35: 19 | B35: 11.52235657 | C35: 12.48163514 | D35: 103.8329998 | E35: 492.1943427 | F35: 114.0726865 | G35: 378.1216562 | H35: 25.4329303 | I35: 14.85017659 | J35: 10.7670603 | K35: 10.15180888 | L35: 388.2734651 | M35: 199.1470513 | N35: 121.9382616 | O35: 57.03634327 | P35: 194.7780149 | Q35: 45.14243563 | R35: 149.6355792 | S35: 10.06467415 | T35: 5.876719146 | U35: 4.473935946 | V35: 4.017415501 | W35: 153.6529947 | X35: 78.80925063 | Y35: 48.25511079 | Z35: 22.57121782
A36: 20 | B36: 11.59558956 | C36: 12.47129259 | D36: 104.7922784 | E36: 494.0488277 | F36: 114.3703748 | G36: 379.6784529 | H36: 25.21323132 | I36: 14.79489778 | J36: 10.58275371 | K36: 9.123366215 | L36: 388.8018191 | M36: 201.6865458 | N36: 120.8067196 | O36: 57.18518742 | P36: 186.2018072 | Q36: 43.10499143 | R36: 143.0968158 | S36: 9.502601715 | T36: 5.576041374 | U36: 4.187955 | V36: 3.438500775 | W36: 146.5353165 | X36: 76.01353795 | Y36: 45.53078209 | Z36: 21.55249571
A37: 21 | B37: 11.6612974 | C37: 12.45984248 | D37: 105.6679814 | E37: 495.6990585 | F37: 114.6262286 | G37: 381.0728299 | H37: 25.01610779 | I37: 14.74444369 | J37: 10.41833354 | K37: 8.202386855 | L37: 389.2752167 | M37: 203.9787856 | N37: 119.7809299 | O37: 57.3131143 | P37: 177.9273922 | Q37: 41.14420955 | R37: 136.7831827 | S37: 8.979340886 | T37: 5.292405484 | U37: 3.926560341 | V37: 2.944184133 | W37: 139.7273668 | X37: 73.21662765 | Y37: 42.99445023 | Z37: 20.57210477
A38: 22 | B38: 11.72024129 | C38: 12.44773004 | D38: 106.4665265 | E38: 497.1683936 | F38: 114.8461049 | G38: 382.3222888 | H38: 24.83927612 | I38: 14.69843094 | J38: 10.2716641 | K38: 7.377350799 | L38: 389.6996396 | M38: 206.0460839 | N38: 118.8531524 | O38: 57.42305243 | P38: 169.9569513 | Q38: 39.26012614 | R38: 130.6968251 | S38: 8.49130334 | T38: 5.024656723 | U38: 3.686935402 | V38: 2.52194642 | W38: 133.2187715 | X38: 70.43682723 | Y38: 40.62993482 | Z38: 19.63006307
A39: 23 | B39: 11.77311264 | C39: 12.43530768 | D39: 107.1940152 | E39: 498.4774866 | F39: 115.0350801 | G39: 383.4424064 | H39: 24.68066208 | I39: 14.65649956 | J39: 10.14084518 | K39: 6.63795071 | L39: 390.0803571 | M39: 207.9092719 | N39: 118.0155945 | O39: 57.51754007 | P39: 162.2899662 | Q39: 37.45212126 | R39: 124.837845 | S39: 8.035315381 | T39: 4.7717357 | U39: 3.466646617 | V39: 2.161126281 | W39: 126.9989712 | X39: 67.68929313 | Y39: 38.4224912 | Z39: 18.72606063
A40: 24 | B40: 11.82054271 | C40: 12.42284995 | D40: 107.8562103 | E40: 499.6447177 | F40: 115.1976215 | G40: 384.4470962 | H40: 24.53837186 | I40: 14.61831631 | J40: 10.02416252 | K40: 5.974921262 | L40: 390.4220175 | M40: 209.587845 | N40: 117.2604404 | O40: 57.59881076 | P40: 154.9237935 | Q40: 35.71908577 | R40: 119.2047077 | S40: 7.608561685 | T40: 4.532670789 | U40: 3.263579681 | V40: 1.85263135 | W40: 121.0573391 | X40: 64.98646513 | Y40: 36.35869972 | Z40: 17.85954289
A41: 25 | B41: 11.8631079 | C41: 12.41056685 | D41: 108.4585175 | E41: 500.6864804 | F41: 115.3376843 | G41: 385.3487961 | H41: 24.4106763 | I41: 14.58357522 | J41: 9.920055556 | K41: 5.379934475 | L41: 390.7287306 | M41: 211.0999935 | N41: 116.5799604 | O41: 57.66884214 | P41: 147.8541054 | Q41: 34.05953785 | R41: 113.7945676 | S41: 7.208540372 | T41: 4.306570185 | U41: 3.075890896 | V41: 1.588709562 | W41: 115.3832771 | X41: 62.33841319 | Y41: 34.42638544 | Z41: 17.02976893
A42: 26 | B42: 11.90133292 | C42: 12.39861549 | D42: 109.0059765 | E42: 501.6173872 | F42: 115.4587705 | G42: 386.1586167 | H42: 24.29600125 | I42: 14.55199657 | J42: 9.82710108 | K42: 4.845523681 | L42: 391.0041404 | M42: 212.4625878 | N42: 115.9666437 | O42: 57.72938524 | P42: 141.0752426 | Q42: 32.47170947 | R42: 108.6035332 | S42: 6.833025248 | T42: 4.092614209 | U42: 2.901970187 | V42: 1.362758641 | W42: 109.9662918 | X42: 59.75313434 | Y42: 32.61454411 | Z42: 16.23585473
A43: 27 | B43: 11.9356888 | C43: 12.38711009 | D43: 109.503259 | E43: 502.4503273 | F43: 115.5639031 | G43: 386.8864242 | H43: 24.19293361 | I43: 14.52332224 | J43: 9.744004686 | K43: 4.365068404 | L43: 391.2514926 | M43: 213.6910006 | N43: 115.413472 | O43: 57.78195154 | P43: 134.5804755 | Q43: 30.95359718 | R43: 103.6268784 | S43: 6.480036598 | T43: 3.890047449 | U43: 2.740411039 | V43: 1.169176234 | W43: 104.7960546 | X43: 57.2367753 | Y43: 30.91330447 | Z43: 15.47679859
A44: 28 | B44: 11.96657628 | C44: 12.37613043 | D44: 109.9546803 | E44: 503.1961551 | F44: 115.6553787 | G44: 387.5407764 | H44: 24.10027115 | I44: 14.49730182 | J44: 9.669611362 | K44: 3.932935868 | L44: 391.4737122 | M44: 214.7984219 | N44: 114.9146651 | O44: 57.82768936 | P44: 128.3621374 | Q44: 29.50295121 | R44: 98.85918618 | S44: 6.147825824 | T44: 3.698169449 | U44: 2.589989149 | V44: 1.003266915 | W44: 99.8624531 | X44: 54.7937107 | Y44: 29.31399988 | Z44: 14.75147561
A45: 29 | B45: 11.99435432 | C45: 12.36572831 | D45: 110.3642344 | E45: 503.8644559 | F45: 115.7351555 | G45: 388.1293004 | H45: 24.01693704 | I45: 14.47370393 | J45: 9.602969336 | K45: 3.544108522 | L45: 391.6734089 | M45: 215.7968033 | N45: 114.4649194 | O45: 57.86757773 | P45: 122.4120159 | Q45: 28.11743024 | R45: 94.29458564 | S45: 5.834826498 | T45: 3.516333121 | U45: 2.449656375 | V45: 0.861028127 | W45: 95.15561376 | X45: 52.42703947 | Y45: 27.80883105 | Z45: 14.05871512
A46: 30 | B46: 12.01932696 | C46: 12.35593339 | D46: 110.7356084 | E46: 504.4632869 | F46: 115.8046523 | G46: 388.6586346 | H46: 23.94201911 | I46: 14.45230494 | J46: 9.543233117 | K46: 3.194298757 | L46: 391.8529333 | M46: 216.696331 | N46: 114.0599774 | O46: 57.90232614 | P46: 116.7214283 | Q46: 26.79458499 | R46: 89.92684327 | S46: 5.539643296 | T46: 3.343937443 | U46: 2.318493377 | V46: 0.7390886967 | W46: 90.66593196 | X46: 50.13864421 | Y46: 26.39090656 | Z46: 13.39729249
A47: 31 | B47: 12.04175166 | C47: 12.34675757 | D47: 111.0722149 | E47: 504.9994251 | F47: 115.8648438 | G47: 389.1345813 | H47: 23.87474501 | I47: 14.43288905 | J47: 9.489714169 | K47: 2.879821869 | L47: 392.0144032 | M47: 217.5056747 | N47: 113.6964848 | O47: 57.93242189 | P47: 111.2814081 | Q47: 25.53191614 | R47: 85.74949201 | S47: 5.261026274 | T47: 3.180423852 | U47: 2.195705853 | V47: 0.6345960349 | W47: 86.38408805 | X47: 47.92943626 | Y47: 25.05409768 | Z47: 12.76595807
A48: 32 | B48: 12.06184667 | C48: 12.33819856 | D48: 111.3772208 | E48: 505.4785826 | F48: 115.9163447 | G48: 389.562238 | H48: 23.81445998 | I48: 14.41524849 | J48: 9.441855966 | K48: 2.597489837 | L48: 392.1597278 | M48: 218.2322177 | N48: 113.3718479 | O48: 57.95817233 | P48: =(1/(1+$L$5))^$A48*E48 -> 106.0828524 | Q48: =(1/(1+$L$5))^$A48*F48 -> 24.3269189 | R48: =(1/(1+$L$5))^$A48*G48 -> 81.75593352 | S48: 4.997849426 | T48: 3.02527294 | U48: 2.080602423 | V48: 0.5451252349 | W48: 82.30105876 | X48: 45.79955896 | Y48: 23.79291512 | Z48: 12.16345945
A49: 33 | B49: 12.07980042 | C49: 12.33024281 | D49: 111.6535727 | E49: 505.9056578 | F49: 115.9595243 | G49: 389.9461335 | H49: 23.76059875 | I49: 14.39918545 | J49: 9.399211497 | K49: 2.344494724 | L49: 392.2906283 | M49: 218.8823671 | N49: 113.0840043 | O49: 57.97976213 | P49: 101.1166486 | Q49: 23.17712461 | R49: 77.93952402 | S49: 4.749091215 | T49: 2.878001764 | U49: 1.972576486 | V49: 0.4686001145 | W49: 78.40812413 | X49: 43.74857459 | Y49: 22.60238713 | Z49: 11.5885623
A50: 34 | B50: 12.09578059 | C50: 12.32286803 | D50: 111.904015 | E50: 506.2849732 | F50: 115.9946218 | G50: 390.2903513 | H50: 23.71265824 | I50: 14.38451462 | J50: 9.361413303 | K50: 2.118304319 | L50: 392.4086557 | M50: 219.461862 | N50: 112.8311785 | O50: 57.99731091 | P50: 96.37377462 | Q50: 22.08013299 | R50: 74.29364162 | S50: 4.513818309 | T50: 2.738161399 | U50: 1.871089451 | V50: 0.4032293942 | W50: 74.69687102 | X50: 41.77561876 | Y50: 21.47795637 | Z50: 11.0400665
A51: 35 | B51: 12.10994373 | C51: 12.31604544 | D51: 112.1311025 | E51: 506.6205181 | F51: 116.0218733 | G51: 390.5986448 | H51: 23.67016881 | I51: 14.37106677 | J51: 9.328143619 | K51: 1.916560836 | L51: 392.5152056 | M51: 219.9761057 | N51: 112.6116024 | O51: 58.01093664 | P51: 91.84537829 | Q51: 21.03363851 | R51: 70.81173977 | S51: 4.291171658 | T51: 2.605334796 | U51: 1.775656909 | V51: 0.3474538608 | W51: 71.15919364 | X51: 39.87953098 | Y51: 20.41538954 | Z51: 10.51681926
A52: 36 | B52: 12.12244431 | C52: 12.30974174 | D52: 112.3372042 | E52: 506.9161744 | F52: 116.0416359 | G52: 390.8745385 | H52: 23.63266708 | I52: 14.35869281 | J52: 9.29910204 | K52: 1.736991597 | L52: 392.6115301 | M52: 220.4304839 | N52: 112.4232367 | O52: 58.02081794 | P52: 87.5228361 | Q52: 20.03544884 | R52: 67.48738726 | S52: =(1/(1+$L$5))^$A52*H52 -> 4.080355199 | T52: 2.479134777 | U52: 1.685836862 | V52: =(1/(1+$L$5))^$A52*K52 -> 0.2999044784 | W52: 67.78729174 | X52: 38.05895745 | Y52: 19.41070539 | Z52: 10.01772442
A53: 37 | B53: 12.1334413 | C53: 12.30392107 | D53: 112.5245016 | E53: 507.1758814 | F53: 116.0544831 | G53: 391.1213984 | H53: 23.59967609 | I53: 14.34726721 | J53: 9.273974279 | K53: 1.577348535 | L53: 392.6987469 | M53: 220.8305968 | N53: 112.26356 | O53: 58.02724153 | P53: 83.39778709 | Q53: 19.08349238 | R53: 64.31429471 | S53: 3.880627676 | T53: 2.359201965 | U53: 1.601220422 | V53: 0.2593723048 | W53: 64.57366701 | X53: 36.31241897 | Y53: 18.46012955 | Z53: 9.54174619
A54: 38 | B54: 12.14310283 | C54: 12.29854681 | D54: 112.6949814 | E54: 507.4037502 | F54: 116.0612734 | G54: 391.3424768 | H54: 23.57069152 | I54: 14.33669077 | J54: 9.252408878 | K54: 1.43536986 | L54: 392.7778466 | M54: 221.1824193 | N54: 112.1294207 | O54: 58.03063672 | P54: 79.46214937 | Q54: 18.17581806 | R54: 61.28633131 | S54: 3.691296743 | T54: 2.245202687 | U54: 1.52142571 | V54: 0.2247866205 | W54: 61.51111793 | X54: 34.63835345 | Y54: 17.56006882 | Z54: 9.087909029
A55: 39 | B55: 12.15160651 | C55: 12.29358321 | D55: 112.8504254 | E55: 507.6040795 | F55: 116.0631628 | G55: 391.5409167 | H55: 23.54518046 | I55: 14.32689119 | J55: 9.234000758 | K55: 1.308782254 | L55: 392.8496989 | M55: 221.4923113 | N55: 112.017024 | O55: 58.03158142 | P55: 75.7081162 | Q55: 17.31058471 | R55: 58.39753149 | S55: 3.511715785 | T55: 2.136826685 | U55: 1.446094057 | V55: 0.1952022117 | W55: 58.5927337 | X55: 33.0351278 | Y55: 16.70711133 | Z55: 8.655292356
A56: 40 | B56: 12.15913898 | C56: 12.28899686 | D56: 112.9924021 | E56: 507.7813477 | F56: 116.0616011 | G56: 391.7197466 | H56: 23.52258306 | I56: 14.31782316 | J56: 9.218289275 | K56: 1.195310598 | L56: 392.9150572 | M56: 221.7669911 | N56: 111.9219549 | O56: 58.03080056 | P56: 72.128148 | Q56: 16.48604932 | R56: 55.64209868 | S56: 3.34128136 | T56: 2.033784959 | U56: 1.374889099 | V56: 0.1697887095 | W56: 55.81188739 | X56: 31.50104357 | Y56: 15.89803045 | Z56: 8.24302466
A57: 41 | B57: 12.16589338 | C57: 12.28475787 | D57: 113.12226 | E57: 507.9401601 | F57: 116.0583011 | G57: 391.881859 | H57: 23.50231987 | I57: 14.30946715 | J57: 9.2047599 | K57: 1.09270376 | L57: 392.9745628 | M57: 222.0134424 | N57: 111.839266 | O57: 58.02915054 | P57: 68.71495867 | Q57: 15.70055292 | R57: 53.01440576 | S57: 3.179431488 | T57: 1.935807643 | U57: 1.3074964 | V57: 0.1478227154 | W57: 53.16222847 | X57: 30.0343342 | Y57: 15.1297951 | Z57: 7.850276459
A58: 42 | B58: 12.17207106 | C58: 12.28084078 | D58: 113.2411245 | E58: 508.0852928 | F58: 116.0552639 | G58: 392.0300289 | H58: 23.48378681 | I58: 14.3018304 | J58: 9.192852721 | K58: 0.9987187988 | L58: 393.0287477 | M58: 222.2389709 | N58: 111.763426 | O58: 58.02763197 | P58: 65.46151663 | Q58: 14.95251624 | R58: 50.50900039 | S58: 3.025642196 | T58: 1.84264241 | U58: 1.243623845 | V58: 0.1286745517 | W58: 50.63767495 | X58: 28.63318481 | Y58: 14.39955746 | Z58: 7.476258118
A59: 43 | B59: 12.17788333 | C59: 12.27722541 | D59: 113.3498942 | E59: 508.2217363 | F59: 116.0548058 | G59: 392.1669305 | H59: 23.46635 | I59: 14.29494797 | J59: 9.181956417 | K59: 0.9111061007 | L59: 393.0780366 | M59: 222.4512637 | N59: 111.6882639 | O59: 58.02740289 | P59: 62.36104376 | Q59: 14.24043544 | R59: 48.12060833 | S59: 2.879424423 | T59: 1.75405303 | U59: 1.182999786 | V59: 0.1117967284 | W59: 48.23240506 | X59: 27.29574908 | Y59: 13.70464153 | Z59: 7.120217718
A60: 44 | B60: 12.18354535 | C60: 12.27389756 | D60: 113.4492362 | E60: 508.3545552 | F60: 116.0594742 | G60: 392.2950809 | H60: 23.44936394 | I60: 14.28887949 | J60: 9.171402029 | K60: 0.8276699292 | L60: 393.1227509 | M60: 222.6581661 | N60: 111.6071777 | O60: 58.02973712 | P60: 59.40699165 | Q60: 13.56286503 | R60: 45.84412662 | S60: 2.74032396 | T60: 1.669817524 | U60: 1.125371393 | V60: 0.09672261234 | W60: 45.94084923 | X60: 26.0201304 | Y60: 13.04256371 | Z60: 6.781432513
A61: 45 | B61: 12.18926016 | C61: 12.27084943 | D61: 113.5395884 | E61: 508.4885148 | F61: 116.0718183 | G61: 392.4166965 | H61: 23.43221951 | I61: 14.28369935 | J61: 9.160484443 | K61: 0.7464210537 | L61: 393.1631176 | M61: 222.867095 | N61: 111.5136924 | O61: 58.03590915 | P61: 56.59299652 | Q61: 12.91838816 | R61: 43.67460836 | S61: 2.607924227 | T61: 1.589725872 | U61: 1.070506435 | V61: 0.08307405746 | W61: 43.75768242 | X61: 24.80432963 | Y61: 12.41108466 | Z61: 6.45919408
A62: 46 | B62: 12.19520504 | C62: 12.2680794 | D62: 113.6211777 | E62: 508.6277634 | F62: 116.0941803 | G62: 392.5335831 | H62: 23.41438489 | I62: 14.27948689 | J62: 9.148520161 | K62: 0.6656998361 | L62: 393.1992829 | M62: 223.0845389 | N62: 111.401954 | O62: 58.04709016 | P62: 53.91285181 | Q62: 12.30559712 | R62: 41.60725469 | S62: 2.481846949 | T62: 1.513578133 | U62: 1.018198356 | V62: 0.07056196928 | W62: 41.67781666 | X62: 23.6462194 | Y62: 11.80823673 | Z62: 6.15279856
A63: 47 | B63: 12.19788619 | C63: 12.26559117 | D63: 113.6940521 | E63: 508.6905301 | F63: 116.0766354 | G63: 392.6138947 | H63: 23.40634144 | I63: 14.27419066 | J63: 9.134897994 | K63: 0.6182921291 | L63: 393.2321868 | M63: 223.1826412 | N63: 111.3929358 | O63: 58.0383177 | P63: 51.3519094 | Q63: 11.71784516 | R63: 39.63406424 | S63: 2.362851781 | T63: 1.440968334 | U63: 0.9682688153 | V63: 0.06241610472 | W63: 39.69648035 | X63: 22.5301123 | Y63: 11.24502936 | Z63: 5.858922579
A64: 48 | B64: 12.19130491 | C64: 12.26326755 | D64: 113.7617571 | E64: 508.5364214 | F64: 115.9309317 | G64: 392.6054897 | H64: 23.42608528 | I64: 14.26396919 | J64: 9.132150776 | K64: 0.6593301168 | L64: 393.2648198 | M64: 222.941873 | N64: 111.6981509 | O64: 57.96546585 | P64: 48.89176405 | Q64: 11.14584427 | R64: 37.74591978 | S64: 2.252233244 | T64: 1.37136808 | U64: 0.9218834469 | V64: 0.06338938794 | W64: 37.80930917 | X64: 21.43410185 | Y64: 10.73889579 | Z64: 5.572922135
A65: 49 | B65: 12.26078465 | C65: 12.26078525 | D65: 113.8337197 | E65: 510.1568186 | F65: 116.867958 | G65: 393.2888606 | H65: 23.21764606 | I65: 14.29777474 | J65: 9.162116091 | K65: 5.36447068e-06 | L65: 393.288866 | M65: 225.4902603 | N65: 109.3646213 | O65: 58.433979 | P65: 46.71195472 | Q65: 10.70088758 | R65: 36.01106714 | S65: 2.125898531 | T65: 1.309160207 | U65: 0.8808651638 | V65: 4.911919284e-07 | W65: 36.01106763 | X65: 20.64677064 | Y65: 10.01385271 | Z65: 5.350443788
A66: 50 | D66: 113.8337203 | J66: 8.91987132 | P66: =P65/$L$5 -> 934.2390944 | Q66: =Q65/$L$5 -> 214.0177515 | R66: 720.2213428 | U66: 0.8167383244 | V66: =V65/$L$5 -> 9.823838567e-06 | W66: 720.2213527 | X66: 412.9354129 | Y66: 200.2770542 | Z66: 107.0088758

Sheet Phase
B1: Consumer Demand | F1: Effort | I1: Growth | L1: Other Prices | O1: Biomass
B2: Intercept alpha: | C2: =CALCULATIONS!C5 -> 60 | E2: Catchability c: | F2: =CALCULATIONS!F5 -> 0.1 | H2: Growth rate g: | I2: =CALCULATIONS!I5 -> 0.25 | K2: Discount rate r: | L2: =CALCULATIONS!L5 -> 0.05 | N2: Initial Biomass B0: | O2: =CALCULATIONS!O5 -> 60
B3: Slope beta: | C3: =CALCULATIONS!C6 -> 3 | E3: Effort elasticity a: | F3: =CALCULATIONS!F6 -> 1.5 | H3: Carrying capacity K: | I3: =CALCULATIONS!I6 -> 200 | K3: Price of effort Pe: | L3: =CALCULATIONS!L6 -> 3 | N3: Stdy-state biomass: | O3: =CALCULATIONS!D66 -> 113.8337203
E4: Biomass elasticity b: | F4: =CALCULATIONS!F7 -> 0.5
N5: Optimal Steady State | R5: Biological Steady States | U5: Economic Steady States | X5: Profit Max Steady States
N6: Biomass | O6: Harvest | P6: MUC | R6: Biomass | S6: Harvest | U6: Biomass | V6: Harvest | X6: Biomass | Y6: Harvest
N7: 114.110375 | O7: 12.25112165 | P7: 8.980491486 | R7: 0 | S7: =$I$2*(1-R7/$I$3)*R7 -> 0 | U7: 80 | V7: 0 | X7: =IF($F$4<=0.01,(1/$F$2)^(1/0.01)*($F$3*$L$3*Y7^($F$3-1)/($C$2-$C$3*Y7))^(1/($F$3*0.01)),(1/$F$2)^(1/$F$4)*($F$3*$L$3*Y7^($F$3-1)/($C$2-$C$3*Y7))^(1/($F$3*$F$4))) -> 0 | Y7: 0
R8: =R7+$I$3/20 -> 10 | S8: =$I$2*(1-R8/$I$3)*R8 -> 2.375 | U8: 82.51808984 | V8: 3.87414483 | X8: =IF($C$2<=$C$3*Y8,X7,IF($F$4<=0.01,(1/$F$2)^(1/0.01)*($F$3*$L$3*Y8^($F$3-1)/($C$2-$C$3*Y8))^(1/($F$3*0.01)),(1/$F$2)^(1/$F$4)*($F$3*$L$3*Y8^($F$3-1)/($C$2-$C$3*Y8))^(1/($F$3*$F$4)))) -> 10.39621471 | Y8: =V8 -> 3.87414483
N9: Open-Access Steady State | R9: =R8+$I$3/20 -> 20 | S9: 4.5 | U9: 84.86035603 | V9: 5.478868161 | X9: =IF($C$2<=$C$3*Y9,X8,IF($F$4<=0.01,(1/$F$2)^(1/0.01)*($F$3*$L$3*Y9^($F$3-1)/($C$2-$C$3*Y9))^(1/($F$3*0.01)),(1/$F$2)^(1/$F$4)*($F$3*$L$3*Y9^($F$3-1)/($C$2-$C$3*Y9))^(1/($F$3*$F$4)))) -> 15.06312063 | Y9: 5.478868161
N10: Biomass | O10: Harvest | R10: 30 | S10: 6.375 | U10: 87.34986457 | V10: 6.710215681 | X10: 19.40537716 | Y10: 6.710215681
N11: 2.155935852 | O11: 0.5331738888 | R11: 40 | S11: 8 | U11: 90.04936072 | V11: 7.748289659 | X11: 23.80473128 | Y11: 7.748289659
R12: 50 | S12: 9.375 | U12: 93.00823011 | V12: 8.662851194 | X12: 28.43743703 | Y12: 8.662851194
R13: 60 | S13: 10.5 | U13: 96.280613 | V13: 9.489678022 | X13: 33.42986603 | Y13: 9.489678022
R14: 70 | S14: 11.375 | U14: 99.9310317 | V14: 10.25002376 | X14: 38.89855936 | Y14: 10.25002376
R15: 80 | S15: 12 | U15: 104.0437534 | V15: 10.95773632 | X15: 44.96756312 | Y15: 10.95773632
R16: 90 | S16: 12.375 | U16: 108.7257108 | V16: 11.62243449 | X16: 51.78007079 | Y16: 11.62243449
R17: 100 | S17: 12.5 | U17: 114.1117816 | V17: 12.25112165 | X17: 59.50961255 | Y17: 12.25112165
R18: 110 | S18: 12.375 | U18: 120.3878164 | V18: 12.84908478 | X18: 68.37347243 | Y18: 12.84908478
R19: 120 | S19: 12 | U19: 127.8106553 | V19: 13.42043136 | X19: 78.65073153 | Y19: 13.42043136
R20: 130 | S20: 11.375 | U20: 136.7191251 | V20: 13.96842783 | X20: 90.70808385 | Y20: 13.96842783
R21: 140 | S21: 10.5 | U21: 147.597676 | V21: 14.49572262 | X21: 105.0383385 | Y21: 14.49572262
R22: 150 | S22: 9.375 | U22: 161.1304139 | V22: 15.00449841 | X22: 122.3199225 | Y22: 15.00449841
R23: 160 | S23: 8 | U23: 178.3072437 | V23: 15.49657932 | X23: 143.5122204 | Y23: 15.49657932
R24: 170 | S24: 6.375 | U24: 200.5799786 | V24: 15.97350834 | X24: 170.014573 | Y24: 15.97350834
R25: 180 | S25: 4.5 | U25: 230.2068562 | V25: 16.43660448 | X25: 203.9440515 | Y25: 16.43660448
R26: 190 | S26: 2.375 | V26: 16.8870058 | X26: 248.6484174 | Y26: 16.8870058
R27: 200 | S27: 0 | V27: 17.32570239 | X27: 309.720009 | Y27: 17.32570239
R28: 210 | S28: -2.625 | V28: 17.75356193 | X28: 397.178818 | Y28: 17.75356193
R29: 220 | S29: -5.5 | V29: 18.17134996 | X29: 530.7284173 | Y29: 18.17134996

Sheet Supply
B1: Consumer Demand | F1: Effort | I1: Growth | L1: Other Prices | O1: Biomass
B2: Intercept alpha: | C2: =CALCULATIONS!C5 -> 60 | E2: Catchability c: | F2: =CALCULATIONS!F5 -> 0.1 | H2: Growth rate g: | I2: =CALCULATIONS!I5 -> 0.25 | K2: Discount rate r: | L2: =CALCULATIONS!L5 -> 0.05 | N2: Initial biomass B0 | O2: =CALCULATIONS!O5 -> 60
B3: Slope beta: | C3: =CALCULATIONS!C6 -> 3 | E3: Effort elasticity a: | F3: =CALCULATIONS!F6 -> 1.5 | H3: Carrying capacity K: | I3: =CALCULATIONS!I6 -> 200 | K3: Price of effort pe: | L3: =CALCULATIONS!L6 -> 3 | N3: Stdy-state biomass: | O3: =CALCULATIONS!D66 -> 113.8337203
E4: Biomass elasticity b: | F4: =CALCULATIONS!F7 -> 0.5
H31: Initial | L31: Steady-state
B32: Harvest | C32: Demand | D32: Biomass | E32: Growth | F32: Long Sply | H32: Shrt Sply | I32: Dashed lines | L32: Shrt Sply | M32: Dashed lines
B33: 0 | C33: =$C$2-$C$3*B33 -> 60 | D33: 0.1 | E33: =$I$2*(1-D33/$I$3)*D33 -> 0.0249875 | F33: =$L$3*$F$3*ABS(E33)^($F$3-1)/($F$2*D33^$F$4)^$F$3 -> 126.4951625 | H33: =$L$3*$F$3*B33^($F$3-1)/($F$2*$O$2^$F$4)^$F$3 -> 0 | I33: =CALCULATIONS!B16 -> 6.55209271 | J33: 0 | L33: =$L$3*$F$3*B33^($F$3-1)/($F$2*$O$3^$F$4)^$F$3 -> 0 | M33: =CALCULATIONS!B65 -> 12.26078465 | N33: 0
B34: =B33+1 -> 1 | C34: =$C$2-$C$3*B34 -> 57 | D34: 3 | E34: =$I$2*(1-D34/$I$3)*D34 -> 0.73875 | F34: =$L$3*$F$3*ABS(E34)^($F$3-1)/($F$2*D34^$F$4)^$F$3 -> 53.65625035 | H34: 6.600838026 | I34: =I33 -> 6.55209271 | J34: =C2-C3*I34 -> 40.34372187 | L34: 4.083281457 | M34: =M33 -> 12.26078465 | N34: =C2-C3*M34 -> 23.21764606
B35: =B34+1 -> 2 | C35: 54 | D35: =$I$3/40 -> 5 | E35: 1.21875 | F35: 46.98317099 | H35: 9.334994659 | L35: 5.774632016
B36: 3 | C36: 51 | D36: =$I$3/20 -> 10 | E36: 2.375 | F36: 38.99817832 | H36: 11.43298683 | I36: =CALCULATIONS!C16 -> 10.5 | J36: 0 | L36: 7.072450946 | M36: 0 | N36: =CALCULATIONS!I65 -> 14.29777474
B37: 4 | C37: 48 | D37: =D36+$I$3/20 -> 20 | E37: 4.5 | F37: 31.9187793 | H37: 13.20167605 | I37: =I36 -> 10.5 | J37: =J43 -> 40.34372187 | L37: 8.166562915 | M37: =M34 -> 12.26078465 | N37: =N36 -> 14.29777474
B38: 5 | C38: 45 | D38: 30 | E38: 6.375 | F38: 28.02926227 | H38: 14.75992253 | L38: 9.13049491
B39: 6 | C39: 42 | D39: 40 | E39: 8 | F39: 25.30535963 | H39: 16.16868504 | I39: 0 | J39: =CALCULATIONS!I16 -> 16.896202 | L39: 10.00195605 | M39: 0 | N39: =N34 -> 23.21764606
B40: 7 | C40: 39 | D40: 50 | E40: 9.375 | F40: 23.17238037 | H40: 17.46417586 | I40: =MAX(I34,I37) -> 10.5 | J40: =J39 -> 16.896202 | L40: 10.80334727 | M40: =M37 -> 12.26078465 | N40: =N39 -> 23.21764606
B41: 8 | C41: 36 | D41: 60 | E41: 10.5 | F41: 21.38915982 | H41: 18.66998932 | L41: 11.54926403
B42: 9 | C42: 33 | D42: 70 | E42: 11.375 | F42: 19.83191656 | H42: 19.80251408 | I42: 0 | J42: =J34 -> 40.34372187 | L42: 12.24984437
B43: 10 | C43: 30 | D43: 80 | E43: 12 | F43: 18.42831582 | H43: 20.87368263 | I43: =I40 -> 10.5 | J43: =J42 -> 40.34372187 | L43: 12.91246973
B44: 11 | C44: 27 | D44: 90 | E44: 12.375 | F44: 17.13180946 | H44: 21.89250303 | L44: 13.54271251
B45: 12 | C45: 24 | D45: 100 | E45: 12.5 | F45: 15.90990258 | H45: 22.86597367 | L45: 14.14490189
B46: 13 | C46: 21 | D46: 110 | E46: 12.375 | F46: 14.73806962 | H46: 23.79965996 | L46: 14.72248067
B47: 14 | C47: 18 | D47: 120 | E47: 12 | F47: 13.59618929 | H47: 24.69807436 | L47: 15.27824023
B48: 15 | C48: 15 | D48: 130 | E48: 11.375 | F48: 12.46610275 | H48: 25.56493575 | L48: 15.81448108
B49: 16 | C49: 12 | D49: 140 | E49: 10.5 | F49: 11.32951025 | H49: 26.4033521 | L49: 16.33312583
B50: 17 | C50: 9 | D50: 150 | E50: 9.375 | F50: 10.16552254 | H50: 27.2159524 | L50: 16.83580075
B51: 18 | C51: 6 | D51: 160 | E51: 8 | F51: 8.946795699 | H51: 28.00498398 | L51: 17.32389605
B52: 19 | C52: 3 | D52: 170 | E52: 6.375 | F52: 7.631605587 | H52: 28.7723859 | L52: 17.79861123
B53: 20 | C53: 0 | D53: 180 | E53: 4.5 | F53: 6.142771941 | H53: 29.51984507 | L53: 18.26098982
D54: 190 | E54: 2.375 | F54: 4.285279172
D55: 200 | E55: 0 | F55: 0
